Cogmind - Beta 14 @@@ ROGUE MODE // 2024.08.08 @ 21:47:42 Player: Sgt. SmokeWeed Result: Self-destructed Performance ------------- Evolutions (0) 0 Regions Visited (4) 800 Robots Destroyed (8) 40 Value Destroyed (246) 246 Prototype IDs (0) 0 Alien Tech Used (0) 0 Bonus (51) 51 TOTAL SCORE: 1137 Bonus ------- Follower Combat Kills 60 Friendly Fire -9 Cogmind --------- Core Integrity 206/250 Matter 300/300 Energy 59/100 System Corruption 0% Temperature Cool (1) Movement Treading (160) Location -9/Mines Parts ------- > --- POWER (1) -------- (None) > --- PROPULSION (2) --- Light Treads Light Treads > --- UTILITY (2) ------ Particle Charger > --- WEAPON (2) ------- Heavy EM Pulse Gun Shock Bomb Launcher > --- INVENTORY (5) ---- Grenade Launcher Peak State ------------ > --- POWER ------------ Ion Engine > --- PROPULSION ------- Light Treads Light Treads > --- UTILITY ---------- Improved Heat Sink Particle Charger > --- WEAPON ----------- Particle Gun Shock Bomb Launcher > --- INVENTORY -------- Grenade Launcher [Rating: 14] Favorites ----------- Power Ion Engine Engine Ion Engine Propulsion Light Treads Treads Light Treads Utility Improved Heat Sink Device Improved Heat Sink Weapon Particle Gun Energy Gun Particle Gun Ballistic Gun Assault Rifle Launcher Grenade Launcher Build | -11 -10 -10 -10 -9 ------- Run | Yrd Mat Min Exi Min Slots Evolved . | . . . . . Power . | . . . . . Propulsion . | . . . . . Utility . | . . . . . Weapon . | . . . . . Parts Attached 12 | 5 . 6 . 1 Power 1 | 1 . . . . Engine 1 | 1 . . . . Core . | . . . . . Reactor . | . . . . . Propulsion 2 | 2 . . . . Treads 2 | 2 . . . . Leg . | . . . . . Wheel . | . . . . . Hover . | . . . . . Flight . | . . . . . Utility 2 | . . 2 . . Device 2 | . . 2 . . Storage . | . . . . . Processor . | . . . . . Hackware . | . . . . . Protection . | . . . . . Artifact . | . . . . . Weapon 7 | 2 . 4 . 1 Energy Gun 2 | . . 1 . 1 Energy Cannon . | . . . . . Ballistic Gun 2 | 2 . . . . Ballistic Cannon . | . . . . . Launcher 3 | . . 3 . . Special Weapon . | . . . . . Impact Weapon . | . . . . . Slashing Weapon . | . . . . . Piercing Weapon . | . . . . . Special Melee Weapon . | . . . . . Unidentified Prototypes . | . . . . . Parts Lost 3 | . . . . 3 Power 1 | . . . . 1 Propulsion . | . . . . . Utility 1 | . . . . 1 Weapon 1 | . . . . 1 Highest Loss Streak 3 | . . . . 3 To Critical Strikes . | . . . . . Average Slot Usage (%) 87 | . 71 79 100 100 Engine 14 | . 14 14 14 14 Treads 28 | . 28 28 28 28 Device 15 | . . 7 28 28 Energy Gun 9 | . . 6 14 14 Ballistic Gun 5 | . 28 8 . . Launcher 13 | . . 13 14 14 Peak Build Rating 14 | 5 5 14 14 14 Average Rating 9 | 3 5 7 14 13 On Entrance 7 | . 5 5 14 14 Naked Turns . | . . . . . Heaviest Build 18 | 8 8 18 18 18 Greatest Support 40 | 40 40 40 40 40 Greatest Overweight (x) 2 | 2 . . . . Average Overweight (x) . | . . . . . Largest Inventory Capacity 5 | 5 5 5 5 5 Average Capacity 5 | 5 5 5 5 5 Most Carried 1 | . . 1 1 1 Average Carried . | . . . 1 1 Final Capacity 5 | 5 5 5 5 5 Final Carried 1 | . . 1 1 1 Class Distribution -------------------- 69% | Mutant 30% | Commander-Mutant Dominant Class ---------------- Mutant | -10/Materials Mutant | -10/Mines Commander-Mutant | -10/Exiles Commander-Mutant | -9/Mines Resources | -11 -10 -10 -10 -9 ----------- Run | Yrd Mat Min Exi Min Matter Collected 343 | 238 16 67 22 . Remotely . | . . . . . Salvage Created 309 | . 50 46 82 131 Parts 16 | . 3 5 2 6 Haulers Intercepted . | . . . . . Recyclers Shooed . | . . . . . Parts Field Recycled . | . . . . . Retrieved Matter . | . . . . . Parts Self-Destructed . | . . . . . Prevented . | . . . . . Kills | -11 -10 -10 -10 -9 ------- Run | Yrd Mat Min Exi Min Combat Hostiles Destroyed 6 | . 1 1 1 3 Guns 4 | . 1 . . 3 AOE 2 | . . 1 1 . Classes Destroyed 3 | . 1 2 . . Worker 1 | . . 1 . . Builder 1 | . . 1 . . Grunt 6 | . 1 1 1 3 Best Kill Streak 2 | . 1 1 1 2 Combat Bots Only 2 | . 1 1 1 2 Max Kills in Single Turn 1 | . 1 1 1 1 Gunslinging . | . . . . . Exploded 1 | . . 1 1 . Melee . | . . . . . Uniques/NPCs Destroyed . | . . . . . Combat | -11 -10 -10 -10 -9 -------- Run | Yrd Mat Min Exi Min Hostile Shots Fired 23 | . . 3 . 20 Missed 7 | . . 1 . 6 Damage Taken 329 | . . 33 . 296 Core 44 | . . 18 . 26 Absorbed by Shields . | . . . . . Core Remaining (%) 100 | 100 . . . . Volleys Fired 31 | . 1 4 14 12 Largest 2 | . 2 2 2 1 Hottest 101 | . 40 50 101 65 Shots Fired 35 | . 2 6 15 12 Gun 32 | . 2 4 14 12 Cannon . | . . . . . Launcher 3 | . . 2 1 . Special . | . . . . . Kinetic 6 | . 2 4 . . Thermal 23 | . . . 14 9 Explosive 2 | . . 2 . . Electromagnetic 4 | . . . 1 3 Robot Hit Streak 10 | . 1 2 10 3 Robot Miss Streak 2 | . . 1 1 2 Penetration Max . | . . . . . Secondary Targets . | . . . . . Shots Hit Robots 22 | . 1 3 12 6 Core Hits 17 | . 1 5 5 6 Critical Kills . | . . . . . Critical Parts Destroyed . | . . . . . Critical Strikes . | . . . . . Melee Attacks . | . . . . . Impact . | . . . . . Slashing . | . . . . . Piercing . | . . . . . Sneak Attacks . | . . . . . Combat Hostiles . | . . . . . Follow-up Attacks . | . . . . . Damage Inflicted 525 | . 15 138 252 120 Guns 394 | . 15 23 236 120 Cannons . | . . . . . Explosions 102 | . . 86 16 . Melee . | . . . . . Ramming 29 | . . 29 . . Kinetic 38 | . 15 23 . . Thermal 340 | . . . 236 104 Explosive 86 | . . 86 . . Electromagnetic 32 | . . . 16 16 Impact . | . . . . . Slashing . | . . . . . Piercing . | . . . . . Highest Corruption . | . . . . . Average Corruption . | . . . . . Corruption Purged . | . . . . . Corruption Blocked . | . . . . . Overload Shots . | . . . . . Overflow Damage . | . . . . . Projectiles . | . . . . . Explosions . | . . . . . Melee . | . . . . . Knockbacks . | . . . . . Impact . | . . . . . Kinetic . | . . . . . Secondary . | . . . . . Self-Inflicted Damage . | . . . . . Shots . | . . . . . Rammed 7 | . . 7 . . Targets Rammed 9 | . . 9 . . Kicked . | . . . . . Crushed 2 | . . 2 . . Highest Temperature 12 | . . . 3 12 Average Temperature 7 | . . . 2 8 Received Heat Transfer 106 | . . 18 . 88 Siege Activations . | . . . . . Robots Corrupted . | . . . . . Combat Hostiles . | . . . . . Parts Fried . | . . . . . Impact Corruptions . | . . . . . Robots Melted . | . . . . . Combat Hostiles . | . . . . . Parts Melted . | . . . . . Heat Transferred 703 | . . . 481 222 Parts Sabotaged . | . . . . . Parts Stolen . | . . . . . Parts Stripped . | . . . . . Power Chain Reactions . | . . . . . Alert | -11 -10 -10 -10 -9 ------- Run | Yrd Mat Min Exi Min Peak Influence 161 | . 34 64 . 161 Initial 13 | . . 13 . . Average 43 | . 20 37 . 131 Maximum Alert Level . | . . . . . Low Security (%) 100 | 100 100 100 . 100 Level 1 . | . . . . . Level 2 . | . . . . . Level 3 . | . . . . . Level 4 . | . . . . . Level 5 . | . . . . . High Security . | . . . . . Max Security . | . . . . . Squads Dispatched 1 | . . 1 . . Investigation 1 | . . 1 . . Extermination . | . . . . . Reinforcement . | . . . . . Assault . | . . . . . Garrison . | . . . . . Intercept . | . . . . . Searches Triggered . | . . . . . Construction Impeded . | . . . . . Haulers Reinforced . | . . . . . Active Scanning Responses . | . . . . . Cargo Convoy Interrupts . | . . . . . Stealth | -11 -10 -10 -10 -9 --------- Run | Yrd Mat Min Exi Min Distress Signals . | . . . . . Communications Jammed . | . . . . . Distress Signals . | . . . . . Times Spotted 16 | . 1 2 . 13 Peak Tracking Total 5 | . 2 2 . 5 Tactical Retreats 1 | . . . . 1 Traps | -11 -10 -10 -10 -9 ------- Run | Yrd Mat Min Exi Min Traps Triggered . | . . . . . Indirectly . | . . . . . Trap Hack Attempts . | . . . . . Triggered . | . . . . . Disarmed . | . . . . . Reprogrammed . | . . . . . Reused . | . . . . . Traps Extracted . | . . . . . Installed . | . . . . . Triggered . | . . . . . Machines | -11 -10 -10 -10 -9 ---------- Run | Yrd Mat Min Exi Min Machines Disabled 1 | . . 1 . . Max in Single Turn 1 | . . 1 . . Machines Repaired . | . . . . . Machines Dismantled . | . . . . . Machines Sabotaged . | . . . . . Overloaded Fab Kills . | . . . . . Hacking | -11 -10 -10 -10 -9 --------- Run | Yrd Mat Min Exi Min Machines Accessed 2 | . 1 1 . . Terminals 1 | . 1 . . . Fabricators . | . . . . . Repair Stations . | . . . . . Recycling Units . | . . . . . Scanalyzers . | . . . . . Garrison Access . | . . . . . Total Hacks 2 | . 1 1 . . Successful 2 | . 1 1 . . Failed . | . . . . . Catastrophic . | . . . . . Database Lockouts . | . . . . . Manual 1 | . . . 1 . Terminals 1 | . 1 . . . Fabricators . | . . . . . Repair Stations . | . . . . . Recycling Units . | . . . . . Scanalyzers . | . . . . . Garrison Access . | . . . . . Terminal Hacks 2 | . 1 1 . . Open Door 1 | . . 1 . . Zone Layout 1 | . 1 . . . Fabricator Hacks . | . . . . . Repair Station Hacks . | . . . . . Recycling Unit Hacks . | . . . . . Scanalyzer . | . . . . . Garrison Access Hacks . | . . . . . Unauthorized Hacks . | . . . . . Terminals . | . . . . . Fabricators . | . . . . . Repair Stations . | . . . . . Recycling Units . | . . . . . Scanalyzers . | . . . . . Garrison Access . | . . . . . Data Cores Recovered . | . . . . . Used . | . . . . . Hacking Detections . | . . . . . Full Trace Events . | . . . . . Feedback Events . | . . . . . Feedback Blocked . | . . . . . Robot Schematics Acquired . | . . . . . Robots Built . | . . . . . Authchips . | . . . . . Time . | . . . . . Total Robot Build Rating . | . . . . . Part Schematics Acquired . | . . . . . Parts Built . | . . . . . Authchips . | . . . . . Time . | . . . . . Total Part Build Rating . | . . . . . Parts Repaired . | . . . . . Time . | . . . . . Parts Recycled . | . . . . . Recycled Matter . | . . . . . Retrieved Matter . | . . . . . Retrieved Components . | . . . . . Parts Scanalyzed . | . . . . . Part Schematics Acquired . | . . . . . Parts Damaged . | . . . . . Bothacking | -11 -10 -10 -10 -9 ------------ Run | Yrd Mat Min Exi Min Used RIF Installer . | . . . . . Robots Hacked . | . . . . . Non-combat . | . . . . . Combat . | . . . . . Robot Hacks Applied . | . . . . . Relay Couplers Released . | . . . . . Fabnet Peak Effective % . | . . . . . Robots Rewired 3 | . . . 3 . Allies Hacked . | . . . . . Hacks Repelled . | . . . . . Allies | -11 -10 -10 -10 -9 -------- Run | Yrd Mat Min Exi Min Total Allies 6 | . . 3 3 . Largest Group 6 | . . 3 6 6 Highest-Rated Group 77 | . . 40 77 77 Highest-Rated Ally 21 | . . 16 21 21 Total Orders . | . . . . . Ally Attacks 30 | . . 2 . 28 Total Damage 279 | . . . . 279 Kills 4 | . . . . 4 Allies Corrupted . | . . . . . Allies Melted . | . . . . . Intel | -11 -10 -10 -10 -9 ------- Run | Yrd Mat Min Exi Min Robot Analysis Total . | . . . . . Derelict Logs Recovered 1 | . . 1 . . Drone Launches . | . . . . . Drone Recoveries . | . . . . . Exploration | -11 -10 -10 -10 -9 ------------- Run | Yrd Mat Min Exi Min Turns Passed 1506 | 46 67 810 485 98 Spaces Moved 858 | 28 41 470 274 45 Core 12 | 12 . . . . Treads 846 | 16 41 470 274 45 Legs . | . . . . . Wheels . | . . . . . Hover . | . . . . . Flight . | . . . . . Fastest Speed 50 | 50 160 160 160 160 Average Speed 159 | 143 160 160 160 160 Slowest Speed 160 | 160 160 160 160 160 Overloaded Moves . | . . . . . Propulsion Burnouts . | . . . . . Robots Hopped . | . . . . . Cave-ins Triggered . | . . . . . Exploration Rate (%) 40 | 3 17 98 67 18 Regions Visited 4 Branch Regions 3 Pre-discovered Areas 1 | . . 1 . . Known Exits Taken . | . . . . . Unknown Exits Taken 4 | 1 1 1 1 . Scrap Searched 3 | . . 2 . 1 Spaces Dug . | . . . . . Terrain Destroyed 11 | . . 11 . . Melee . | . . . . . Projectile . | . . . . . AOE 11 | . . 11 . . Terrain Rammed . | . . . . . Walls Destroyed . | . . . . . Machines Disabled . | . . . . . Actions | -11 -10 -10 -10 -9 --------- Run | Yrd Mat Min Exi Min Total 952 | 32 41 515 306 58 Wait 25 | . . 24 1 . Move 854 | 27 40 469 273 45 Hop . | . . . . . Pick Up . | . . . . . Fast Attach 11 | 5 . 5 . 1 Attach . | . . . . . Detach . | . . . . . Swap 1 | . . 1 . . Drop 3 | . . 3 . . Fire 31 | . 1 4 14 12 Melee . | . . . . . Ram . | . . . . . Kick . | . . . . . Crush 9 | . . 9 . . Escape Stasis . | . . . . . Rewire 18 | . . . 18 . Trap . | . . . . . Miscellaneous . | . . . . . Route ------- -11/Scrapyard -10/Materials -10/Mines (discovered 3 exits: [*Mat x2] / *Exi) -10/Exiles -9/Mines History --------- Turn | Location | Event 13 | -11/Scrapyard | Discovered new exit (range 15) 47 | -11/Scrapyard | Entered Materials 90 | -10/Materials | Discovered new exit (range 15) 114 | -10/Materials | Entered Mines 236 | -10/Mines | YI-UF0 nonchalantly dropped a Grenade Launcher on the ground 268 | -10/Mines | Discovered new exit (range 6) 285 | -10/Mines | Discovered new exit (range 5) 301 | -10/Mines | Build established: Mutant 386 | -10/Mines | Assisted by bots powering up and referring to "LRC-V3" 625 | -10/Mines | Learned location of Zion (-6) 633 | -10/Mines | A weapon hastily lodged in a ceiling crevice suddenly fell to the ground 800 | -10/Mines | Met a Derelict shopkeep closing up shop 901 | -10/Mines | Deemed a non-threat by the Exiles lab entrance 901 | -10/Mines | Discovered new exit (range 5) 924 | -10/Mines | Entered Exiles 924 | -10/Exiles | Found Exiles lab destroyed 924 | -10/Exiles | Accompanied by 3 allies 1233 | -10/Exiles | Opened EX-Vault 1341 | -10/Exiles | Build established: Commander-Mutant 1387 | -10/Exiles | Discovered new exit (range 14) 1409 | -10/Exiles | Entered Mines 1409 | -9/Mines | Accompanied by 6 allies 1446 | -9/Mines | Assembled infested the area 1451 | -9/Mines | Assisted by a Guerilla fighting off Assembled 1507 | -9/Mines | Self-destructed Last Messages --------------- A derelict emerges from the shadows: "You need to get out of here! I've been tracking a group of Assembled to figure out where they're coming from, and they're closing on this area, come on!" as-83433 destroyed. Searching scrap... Found Hvy. EM Pulse Gun. Found Beam Rifle. Found 57 Matter. Particle Gun destroyed. as-48514 destroyed. Mercenary 1a destroyed. Acquired Hvy. EM Pulse Gun. C-30 ARC bursts open, deploying its payload. D-53 Grenadier unfolds itself. Ion Engine destroyed. Imp. Heat Sink destroyed. as-79803 destroyed. Mercenary 1c destroyed. The unstable cave ceiling collapses. Trooper 1a destroyed. Map ----- +----------------------------------------------------+ | ????????????????????????????????????????????????? | | ????????????????????????????????????????????????? | | ????????????????????????????????????????????????? | | ????????????????????????????????????????????????? | | ????????????????????????????????????????????????? | | ????????????????????????????????????????????????? | | ????????????????????????????????????????????????? | | ????????????????????????????????????????????????? | | ????????????????????????????????????????????????? | | ????????????????????????????????????????????????? | | ????????????????????????????????????????????????? | | ????????????????????????????????????????????????? | | ????????????????????????????????????????????????? | | ????????????????????????????????????????????????? | | ????????????????????????????????????????????????? | | ????????????????????????????????????????????????? | | ????????????????????????????????????????????????? | | ????????????????????????????????????????????????? | | ????????????????????????????????????????????????? | | ????????????????????????????????????????????????? | | ??????????????????????##????????????????????????? | | ?????????????????????## ######? #???????????????? | | ?????????????????????# # # ## ###??????????? | | ?????????????????????# a ???????????? | | ????????????# ### #???????????????? | | ????????????????# %d @ #????????????????? | | ?????????????????##### %[ ##????????????????? | | ????????????????????# = = ##?????????????????? | | ????????????????????## g ######??????????????? | | ????????????????#######=%%ga= #?????????? | | ????????????????# =[### #####??????????????? | | ????????????????# ##### #??a#??????????????????? | | ???????????????## #### #???#??????????????????? | | ??????????????## ## #??????????????????????? | | ?? #?????????# #??????????????????????? | | ?? ##??????## ##??????????????????????? | | ?? #?????## ##???????????????????????? | | ?? ?????## ##????????????????????????? | | ?? ?????# = ##?????????????????????????? | | ?? ??????# !%% #??????????????????????????? | | ## ??????## [! ##?????????????????????????? | | # ?######## ##????????????????????????? | | # ?# #????????????????????????? | | # #?# #????????????????????????? | | # #?# ### ##????????????????????????? | | # #?# #?# #####?????????????????????????? | | # #?# #?# ##?????????????????????????????? | | #?# ### ##??????????????????????????????? | | ### #???????????????????????????????? | | =%## ## #???????????????????????????????? | +----------------------------------------------------+ Best States ------------- Heat Dissipation 39 Energy Generation 10 Energy Capacity 250 Matter Stores 300 Matter Capacity 300 Sight Range 16 Terrain Scan Density 10 Evasion (%) 40 Recoil Reduction 2 Particle Charging 15 Item Schematics ----------------- None Robot Schematics ------------------ None Fabricated ------------ Nothing Alien Tech Used ----------------- None Achievements -------------- None Challenges ------------ None Game ------ Seed AlloyExperimentalBiocell Manual? 0 Play Time 00:06:39 Cumulative 69.0 hours Start 2024.08.08 @ 21:42:01 End 2024.08.08 @ 21:47:42 Sessions 1 Manual Loads 0 Difficulty Rogue Special Mode None Game No. 165 Rogue 90 Adventurer 75 Explorer 0 Win Type - Total 0 Types 0/0/0/0/0/0/0/0/0 Lore% 38 Gallery% 42 Achievement% 34 Wizard Run 0 Options --------- Layout 0 ASCII 0 Keyboard 0 Movement Arrows Keybinds 0 Fullscreen 1 Font 24/Smallcaps Map View 76x50 Zoom Use 0% Tactical HUD 0 Map Filters NONE Filters NONE Steam 1 RUN: 18ade87a-5aea-4aee-b149-bfcd666b7866